bitfinex-derivatives/quotes_BTCF0:USTF0_20210108
["timestamp","ask_amount","ask_price","bid_price","bid_amount"]
[1610069105299,3.45692,38665.0,38634.0,0.09074]
[1610069105699,3.45692,38665.0,38635.0,0.13632608]
[1610069106099,0.13272,38665.0,38635.0,0.13632608]
[1610069107703,0.13272,38665.0,38656.0,0.13632608]
[1610069109306,3.0584,38703.0,38656.0,0.24598608]
[1610069109705,3.0584,38703.0,38675.0,0.13632608]
[1610069109905,3.0584,38703.0,38664.0,0.12218]
[1610069110106,3.19317,38703.0,38664.0,0.12218]
[1610069111706,3.19317,38703.0,38671.0,0.13632608]
[1610069111907,0.13477,38703.0,38671.0,0.13632608]
[1610069112308,0.13477,38703.0,38672.0,0.00031222]
[1610069112509,0.13477,38703.0,38672.0,0.10094222]
[1610069112910,0.13477,38703.0,38673.0,0.00031222]
[1610069113809,0.13477,38703.0,38685.0,0.13632608]
[1610069114211,0.13477,38703.0,38686.0,0.00031164]
[1610069114612,2.9675,38743.0,38686.0,0.00031164]
[1610069114812,0.00746835,38768.0,38686.0,0.00031164]
[1610069115012,3.3834,38766.0,38686.0,0.00031164]
[1610069115213,3.49992,38766.0,38686.0,0.00031164]
[1610069115614,0.0782,38765.0,38686.0,0.00031164]
[1610069115813,0.0782,38765.0,38704.0,0.13632608]
[1610069116015,0.0782,38765.0,38704.0,0.25340608]
[1610069116616,0.0782,38765.0,38705.0,0.00031148]
[1610069117017,3.49992,38766.0,38705.0,0.00031148]
[1610069117415,3.49992,38766.0,38704.0,0.11708]
[1610069117615,3.49992,38766.0,38685.0,4.1518]
[1610069117815,3.49992,38766.0,38704.0,0.13632608]
[1610069118016,0.077,38765.0,38705.0,0.00031147]
[1610069118216,3.49992,38766.0,38705.0,0.03195078]
[1610069118617,4.99992,38766.0,38705.0,0.03195078]
[1610069118817,3.49992,38766.0,38705.0,0.03195078]
[1610069119820,0.13632608,38706.0,38705.0,0.03195078]
[1610069120220,0.21472608,38706.0,38705.0,0.03195078]
[1610069121925,0.13632608,38706.0,38705.0,0.03195078]
[1610069123122,0.21442608,38706.0,38705.0,0.03195078]
[1610069123723,0.21442608,38706.0,38705.0,0.16827686]
[1610069124624,0.0781,38706.0,38705.0,0.23154532]
[1610069124824,0.0781,38706.0,38705.0,0.16827686]
[1610069125225,0.077,38713.0,38705.0,0.16827686]
[1610069125726,0.077,38713.0,38712.0,0.13632608]
[1610069125926,0.0765,38718.0,38712.0,0.13632608]
[1610069126127,0.0765,38718.0,38712.0,0.2885074]
[1610069126528,0.0765,38718.0,38713.0,0.03194076]
[1610069127129,0.1569,38776.0,38713.0,0.03194076]
[1610069127130,1.5,38775.0,38713.0,0.03194076]
[1610069127730,0.13632608,38714.0,38713.0,0.03194076]
[1610069129132,0.21472608,38714.0,38713.0,0.03194076]
[1610069129333,0.13632608,38714.0,38704.0,0.03194252]
[1610069129731,0.10362,38725.0,38713.0,0.03194352]
[1610069129932,0.10362,38725.0,38705.0,0.03194528]
[1610069130132,0.10362,38725.0,38714.0,0.03194817]
[1610069130331,0.10362,38725.0,38714.0,0.00031144]
[1610069130531,0.10362,38725.0,38706.0,0.03163839]
[1610069130532,0.10362,38725.0,38706.0,0.03194983]
[1610069130731,0.10362,38725.0,38696.0,0.03195195]
[1610069130931,0.10362,38725.0,38707.0,0.03195231]
[1610069131131,0.10362,38725.0,38707.0,0.03164083]
[1610069131331,0.10362,38725.0,38697.0,0.03195037]
[1610069131531,0.4697,38724.0,38695.0,0.12418]
[1610069131732,0.10362,38725.0,38698.0,0.03195504]
[1610069132131,3.9029,38721.0,38696.0,0.03195573]
[1610069132331,3.9029,38721.0,38699.0,0.03195936]
[1610069132332,0.077,38720.0,38699.0,0.03195936]
[1610069132531,0.077,38720.0,38697.0,0.03196384]
[1610069132732,3.9029,38721.0,38700.0,0.03165155]
[1610069132931,3.9029,38721.0,38700.0,0.03196314]
[1610069133132,3.9029,38721.0,38684.0,0.03196307]
[1610069133332,3.9029,38721.0,38701.0,0.03196477]
[1610069133532,3.9029,38721.0,38685.0,0.03196494]
[1610069133732,0.13632608,38686.0,38685.0,0.03196494]
[1610069134034,0.21382608,38686.0,38673.0,0.03196447]
[1610069134232,0.21382608,38686.0,38685.0,0.03196447]
[1610069134434,0.13632608,38686.0,38674.0,0.03196439]
[1610069134634,0.1262,38704.0,38685.0,0.03196281]
[1610069134834,0.1262,38704.0,38685.0,0.15369281]
[1610069135034,0.1262,38704.0,38685.0,0.12173]
[1610069135235,0.1262,38704.0,38686.0,0.03195724]
[1610069135436,0.0781,38703.0,38686.0,0.03195724]
[1610069135838,0.0781,38703.0,38688.0,0.13632608]
[1610069136037,0.0781,38703.0,38686.0,0.03195724]
[1610069136238,0.0781,38703.0,38689.0,0.03195516]
[1610069136637,0.0781,38703.0,38687.0,0.0319558]
[1610069136837,0.0781,38703.0,38690.0,0.0319552]
[1610069137039,0.0781,38703.0,38688.0,0.03195504]
[1610069137437,0.0781,38703.0,38691.0,0.03195507]
[1610069137638,0.0781,38703.0,38689.0,0.03195473]
[1610069137838,0.0781,38703.0,38695.0,0.13632608]
[1610069138338,0.0781,38703.0,38696.0,0.03195469]
[1610069138937,0.0781,38703.0,38686.0,0.03195469]
[1610069139137,0.0781,38703.0,38697.0,0.03195605]
[1610069139437,0.0781,38703.0,38686.0,0.03195746]
[1610069139838,0.0781,38703.0,38698.0,0.0319585]
[1610069140038,0.0781,38703.0,38687.0,0.03195768]
[1610069140238,0.0781,38703.0,38699.0,0.03195935]
[1610069140638,0.0781,38703.0,38688.0,0.0319574]
[1610069140838,0.0781,38703.0,38700.0,0.03195967]
[1610069141038,0.0781,38703.0,38689.0,0.0319585]
[1610069141339,0.0781,38703.0,38701.0,0.03195835]
[1610069141539,0.0781,38703.0,38690.0,0.03195888]
[1610069141742,0.08657,38705.0,38690.0,0.03195888]
[1610069141942,0.13632608,38691.0,38686.0,0.03195931]
[1610069142143,0.13632608,38691.0,38682.0,0.15821591]
[1610069142342,0.13632608,38691.0,38687.0,0.03196393]
[1610069142745,0.13632608,38691.0,38673.0,0.0319672]
[1610069142943,0.13632608,38691.0,38688.0,0.03196692]
[1610069143143,0.13632608,38691.0,38674.0,0.03196843]
[1610069143543,0.13632608,38691.0,38689.0,0.03196997]
[1610069143745,0.13632608,38691.0,38675.0,0.03197027]
[1610069143944,0.13632608,38691.0,38690.0,0.03197116]
[1610069144144,0.21342608,38691.0,38690.0,0.03197116]
[1610069144347,0.21342608,38691.0,38676.0,0.03197196]
[1610069144545,0.21342608,38691.0,38690.0,0.0319719]
[1610069144747,0.21342608,38691.0,38677.0,0.0319728]
[1610069144945,0.13632608,38691.0,38677.0,0.0319728]
[1610069145146,0.13632608,38691.0,38690.0,0.03197303]
[1610069145345,0.13632608,38691.0,38678.0,0.03197353]
[1610069145548,0.13632608,38691.0,38690.0,0.03197386]
[1610069145947,0.13632608,38691.0,38679.0,0.03197377]
[1610069146147,0.0779,38690.0,38674.0,4.0265]
[1610069146346,0.0779,38690.0,38680.0,0.03196996]
[1610069146548,0.13632608,38691.0,38680.0,0.03196996]
[1610069146747,0.13632608,38691.0,38675.0,0.19026076]
[1610069146947,0.13632608,38691.0,38681.0,0.03196337]
[1610069147148,0.13632608,38691.0,38681.0,0.12531]
[1610069147548,0.0771,38690.0,38682.0,0.0319597]
[1610069147950,0.0771,38690.0,38689.0,0.13632608]
[1610069148148,0.0771,38690.0,38689.0,0.25014608]
[1610069148548,0.0771,38690.0,38689.0,0.28210328]
[1610069149248,0.0771,38690.0,38689.0,0.1457772]
[1610069149853,0.21342608,38690.0,38689.0,0.1457772]
[1610069150052,0.21342608,38690.0,38689.0,0.0319572]
[1610069150453,0.21342608,38690.0,38684.0,0.03196084]
[1610069150652,0.0784,38689.0,38675.0,0.15829157]
[1610069150853,0.0784,38689.0,38685.0,0.03196387]
[1610069151254,0.13632608,38690.0,38673.0,0.03196692]
[1610069151456,0.13632608,38690.0,38686.0,0.0319703]
[1610069151653,3.69712608,38690.0,38674.0,0.03197463]
[1610069151853,0.10037,38692.0,38674.0,0.03197463]
[1610069151854,0.13632608,38675.0,38674.0,0.03197463]
[1610069152054,0.24474608,38675.0,38655.0,0.03197957]
[1610069152253,0.32254608,38675.0,38674.0,0.03198111]
[1610069152455,0.24474608,38675.0,38656.0,0.03198057]
[1610069152854,0.24474608,38675.0,38674.0,0.0319808]
[1610069153054,0.24474608,38675.0,38657.0,0.03198099]
[1610069153255,0.24474608,38675.0,38674.0,0.03198144]
[1610069153556,0.32114608,38675.0,38658.0,0.0319813]
[1610069153756,0.32114608,38675.0,38674.0,0.00031175]
[1610069153956,0.32114608,38675.0,38674.0,0.03198126]
[1610069154157,0.32114608,38675.0,38655.0,0.03198136]
[1610069154358,0.32114608,38675.0,38674.0,0.03198249]
[1610069154560,0.32114608,38675.0,38656.0,0.0319834]
[1610069154959,0.32114608,38675.0,38655.0,0.03198527]
[1610069155158,0.32114608,38675.0,38657.0,0.03198538]
[1610069155359,0.32114608,38675.0,38656.0,0.03198532]
[1610069155559,0.24474608,38675.0,38646.0,0.29055408]
[1610069155759,0.24474608,38675.0,38657.0,0.03198421]
[1610069155959,0.13632608,38658.0,38649.0,0.13632608]
[1610069156559,0.0787,38657.0,38650.0,0.03198382]
[1610069157659,0.0774,38656.0,38650.0,0.03198382]
[1610069157860,0.13632608,38651.0,38650.0,0.03198382]
[1610069158961,0.21382608,38651.0,38650.0,0.03198382]
[1610069159162,0.21382608,38651.0,38614.0,0.19037205]
[1610069159362,0.21382608,38651.0,38650.0,0.03198896]
[1610069159561,0.21382608,38651.0,38650.0,0.03167713]
[1610069159761,0.83152608,38651.0,38629.0,0.13389]
[1610069159963,0.13632608,38630.0,38629.0,0.13389]
[1610069160561,0.13632608,38630.0,38629.0,0.16588726]
[1610069161163,0.21362608,38630.0,38629.0,0.13389]
[1610069161362,0.21362608,38630.0,38629.0,0.16588844]
[1610069161563,0.13632608,38630.0,38629.0,0.16588844]
[1610069161963,0.13632608,38630.0,38629.0,0.03199844]
[1610069162363,0.13632608,38630.0,38620.0,0.03200057]
[1610069162566,0.21272608,38630.0,38629.0,0.03200043]
[1610069162968,0.21272608,38630.0,38621.0,0.03200068]
[1610069163167,0.13632608,38630.0,38629.0,0.03200028]
[1610069163370,0.13632608,38630.0,38622.0,0.03200074]
[1610069163569,0.13632608,38630.0,38629.0,0.03200103]
[1610069163968,0.13632608,38630.0,38619.0,0.03200152]
[1610069164166,0.13632608,38630.0,38629.0,0.03200239]
[1610069164568,0.13632608,38630.0,38620.0,0.03200282]
[1610069164768,0.13632608,38630.0,38629.0,0.03200212]
[1610069164968,0.13632608,38630.0,38618.0,0.10055]
[1610069165169,0.13632608,38630.0,38629.0,0.03200442]
[1610069165568,0.13632608,38630.0,38619.0,0.03200466]
[1610069165769,0.13632608,38630.0,38629.0,0.03200355]
[1610069165969,0.21462608,38630.0,38620.0,0.03200363]
[1610069166369,3.0568,38621.0,38619.0,0.03200374]
[1610069166569,3.0568,38621.0,38618.0,0.10055]
[1610069166769,0.21462608,38630.0,38620.0,0.03200368]
[1610069167171,4.1105,38621.0,38619.0,0.03200813]
[1610069167370,0.0945,38629.0,38621.0,0.03200906]
[1610069167569,3.5268,38622.0,38620.0,0.03201115]
[1610069167772,0.0766,38621.0,38620.0,0.03201115]
[1610069167970,0.33126608,38621.0,38611.0,0.03201473]
[1610069168171,0.33126608,38621.0,38620.0,0.03201916]
[1610069168371,0.33126608,38621.0,38596.0,0.13084]
[1610069168772,0.33126608,38621.0,38597.0,0.03202085]
[1610069169172,0.25466608,38621.0,38597.0,0.03202085]
[1610069169772,1.5,38620.0,38597.0,0.03202085]
[1610069169973,0.13632608,38598.0,38589.0,0.03202426]
[1610069170375,0.25579608,38598.0,38589.0,0.03202426]
[1610069170574,0.5211,38597.0,38589.0,0.03202426]
[1610069170773,0.5211,38597.0,38578.0,0.03202803]
[1610069171573,0.5211,38597.0,38579.0,0.03202408]
[1610069171974,0.5211,38597.0,38579.0,0.13977408]
[1610069172174,0.13632608,38591.0,38590.0,0.13632608]
[1610069172774,0.13632608,38591.0,38590.0,0.13663804]
[1610069172976,0.13632608,38591.0,38590.0,0.03202408]
[1610069173475,1.5,38590.0,38575.0,0.15853774]
[1610069173676,3.0092,38580.0,38538.0,0.15861336]
[1610069173875,0.09599,38581.0,38538.0,0.15861336]
[1610069174077,4.1353,38555.0,38538.0,0.0987]
[1610069174278,4.1353,38555.0,38539.0,0.03204503]
[1610069176278,0.13632608,38540.0,38539.0,0.03204503]
[1610069176478,3.94752608,38540.0,38539.0,0.03204503]
[1610069176679,0.13632608,38540.0,38539.0,0.03204503]
[1610069178878,3.4187,38539.0,38538.0,0.0987]
[1610069179279,3.4187,38539.0,38538.0,0.03205353]
[1610069179679,3.4187,38539.0,38511.0,0.03205508]
[1610069179880,3.4187,38539.0,38538.0,0.14733411]
[1610069180079,3.4187,38539.0,38538.0,0.11528]
[1610069180480,3.4187,38539.0,38538.0,0.11558031]
[1610069183083,3.4187,38539.0,38538.0,0.00030031]
[1610069183285,0.13632608,38540.0,38538.0,0.00030031]
[1610069183683,0.13632608,38540.0,38519.0,0.0003005]
[1610069183883,0.27263608,38540.0,38539.0,0.00030049]
[1610069184087,0.27263608,38540.0,38523.0,0.12817]
[1610069184284,0.13631,38540.0,38537.0,0.13632608]
[1610069184489,0.13631,38540.0,38539.0,0.00030046]
[1610069184685,0.13631,38540.0,38538.0,0.10027042]
[1610069184886,0.12874,38564.0,38538.0,0.10027042]
[1610069184887,0.12874,38564.0,38539.0,0.00030038]
[1610069185087,0.11313,38573.0,38539.0,0.00030038]
[1610069185286,4.296,38584.0,38539.0,0.0320582]
[1610069185488,4.296,38584.0,38539.0,0.00030038]
[1610069185686,4.296,38584.0,38540.0,0.03205401]
[1610069186086,4.296,38584.0,38539.0,0.0320526]
[1610069186286,0.13632608,38555.0,38554.0,0.13632608]
[1610069186888,4.39578,38584.0,38554.0,0.26758636]
[1610069187291,4.39578,38584.0,38555.0,0.00030028]
[1610069188291,0.13632608,38556.0,38555.0,0.00030028]
[1610069189491,0.13632608,38556.0,38555.0,0.03204676]
[1610069191497,0.13632608,38556.0,38539.0,0.03205245]
[1610069192398,0.13632608,38540.0,38539.0,0.03205245]
[1610069194202,0.26910608,38540.0,38499.0,4.0866]
[1610069194402,0.26910608,38540.0,38438.0,0.31571976]
[1610069194403,0.26910608,38540.0,38505.0,0.13632608]
[1610069194802,0.26910608,38540.0,38510.0,0.0320666]
[1610069195002,0.26910608,38540.0,38510.0,0.12662]
[1610069195403,0.26910608,38540.0,38511.0,0.03206757]
[1610069195804,3.7356,38512.0,38454.0,3.5663]
[1610069196003,1.5,38539.0,38423.0,2.42308544]
[1610069196204,3.1166,38471.0,38424.0,0.15888808]
[1610069196404,0.11573,38507.0,38424.0,0.19098649]
[1610069196603,4.1172,38443.0,38424.0,0.30465649]
[1610069196804,4.1172,38443.0,38424.0,0.20932364]
[1610069197003,0.10793,38485.0,38424.0,0.11367]
[1610069197206,3.8149,38429.0,38424.0,0.11367]
[1610069197404,0.08546,38457.0,38425.0,0.03181872]
[1610069197605,2.96,38435.0,38425.0,0.03181872]
[1610069197804,0.08266,38445.0,38425.0,0.03181872]
[1610069198006,3.9561,38427.0,38425.0,0.03181872]
[1610069198204,0.11191,38436.0,38425.0,0.03181872]
[1610069198404,0.13632608,38426.0,38425.0,0.03181872]
[1610069198604,0.13632608,38426.0,38415.0,0.11491]
[1610069198806,0.13632608,38426.0,38425.0,0.03213339]
[1610069199005,0.11191,38436.0,38416.0,0.03213369]
[1610069199405,4.0074,38442.0,38425.0,0.13352647]
[1610069199605,4.0074,38442.0,38425.0,0.10139]
[1610069199806,4.0074,38442.0,38426.0,0.03213616]
[1610069200307,4.0074,38442.0,38428.0,0.13632608]
[1610069200507,0.08266,38445.0,38428.0,0.13632608]
[1610069200707,0.08266,38445.0,38429.0,0.00030109]
[1610069200908,0.08546,38457.0,38429.0,0.03213171]
[1610069202210,3.9148,38447.0,38429.0,0.03213171]
[1610069202410,0.13632608,38430.0,38429.0,0.03213171]
[1610069202711,3.23052608,38430.0,38426.0,0.03213985]
[1610069202910,0.13632608,38430.0,38426.0,0.03213985]
[1610069203111,0.13632608,38430.0,38416.0,0.03213928]
[1610069203311,0.13632608,38430.0,38427.0,0.03214057]
[1610069203511,0.13632608,38430.0,38415.0,0.11491]
[1610069203512,0.13632608,38430.0,38417.0,0.03214078]
[1610069203913,0.0787,38429.0,38416.0,0.0321473]
[1610069204112,0.0787,38429.0,38418.0,0.03214655]
[1610069204311,0.13632608,38422.0,38417.0,0.03214676]
[1610069204711,0.13632608,38422.0,38416.0,0.03214514]
[1610069204912,0.13632608,38422.0,38418.0,0.03214679]
[1610069205213,0.13632608,38422.0,38417.0,0.03214759]
[1610069205412,0.13632608,38422.0,38419.0,0.03214757]
[1610069205813,0.13632608,38422.0,38418.0,0.03214753]
[1610069206014,0.13632608,38422.0,38420.0,0.03214636]
[1610069206214,0.13632608,38422.0,38419.0,0.03214994]
[1610069206614,0.13632608,38422.0,38421.0,0.03215032]
[1610069206815,0.13632608,38422.0,38420.0,0.00030132]
[1610069207014,0.13632608,38422.0,38405.0,0.08862]
[1610069207015,0.13632608,38422.0,38421.0,0.03215397]
[1610069207414,0.13632608,38422.0,38421.0,0.00030125]
[1610069207614,0.13632608,38422.0,38421.0,0.03215176]
[1610069207815,0.13632608,38422.0,38415.0,0.03215011]
[1610069208114,0.13632608,38422.0,38421.0,0.03215035]
[1610069208514,0.13632608,38422.0,38416.0,0.03214933]
[1610069208715,0.13632608,38422.0,38421.0,0.00030122]
[1610069208914,0.13632608,38422.0,38417.0,0.03214854]
[1610069209216,0.13632608,38422.0,38421.0,0.00030118]
[1610069209415,0.13632608,38422.0,38418.0,0.03214571]
[1610069209816,0.13632608,38422.0,38415.0,0.032146]
[1610069210016,0.13632608,38422.0,38419.0,0.03214566]
[1610069210216,0.13632608,38422.0,38416.0,0.03214477]
[1610069210416,0.13632608,38422.0,38421.0,0.13632608]
[1610069210818,0.13632608,38422.0,38421.0,0.16846759]
[1610069212321,3.2884,38455.0,38421.0,0.16846759]
[1610069212521,0.1249,38457.0,38421.0,0.16846759]
[1610069212720,0.1249,38457.0,38422.0,0.03214265]
[1610069212920,0.1249,38457.0,38422.0,0.12446265]
[1610069213322,4.1562,38489.0,38422.0,0.12446265]
[1610069213523,4.1562,38489.0,38423.0,0.0321386]
[1610069214124,0.01475982,38523.0,38423.0,0.0321386]
[1610069214325,0.13632608,38479.0,38465.0,0.13632608]
[1610069214724,0.13632608,38479.0,38466.0,0.00030105]
[1610069215522,3.8837,38519.0,38466.0,0.00030105]
[1610069215922,3.8837,38519.0,38466.0,0.03212557]
[1610069216123,0.01488588,38543.0,38466.0,0.03212557]
[1610069216324,0.13632608,38501.0,38497.0,0.13632608]
[1610069216523,0.01490566,38547.0,38497.0,0.13632608]
[1610069216724,0.01493173,38549.0,38498.0,0.00030084]
[1610069217125,0.01496215,38557.0,38498.0,0.00030084]
[1610069217624,0.01497144,38559.0,38498.0,0.00030084]
[1610069217824,0.277,38556.0,38498.0,0.00030084]
[1610069218025,0.277,38556.0,38498.0,0.03210366]
[1610069218325,0.13632608,38514.0,38498.0,0.03210366]
[1610069218725,0.13632608,38514.0,38496.0,0.03209986]
[1610069218925,0.24486608,38514.0,38496.0,0.03209986]
[1610069220429,0.13632608,38497.0,38496.0,0.16842594]
[1610069220828,0.13632608,38497.0,38496.0,0.03209986]
[1610069222030,0.13632608,38497.0,38474.0,0.0321035]
[1610069222232,0.13632608,38497.0,38496.0,0.03210362]
[1610069222430,0.13632608,38497.0,38464.0,0.12019]
[1610069222431,0.13632608,38497.0,38475.0,0.03210553]
[1610069223832,0.13632608,38497.0,38465.0,0.03210644]
[1610069224032,0.13632608,38497.0,38476.0,0.03210682]
[1610069224434,0.13632608,38477.0,38472.0,0.1295]
[1610069224835,0.13632608,38477.0,38473.0,0.03180807]
[1610069225034,0.13632608,38477.0,38472.0,0.1295]
[1610069225035,0.13632608,38477.0,38464.0,0.12019]
[1610069225233,0.13632608,38477.0,38433.0,3.0204]
[1610069225234,0.13632608,38477.0,38434.0,0.1590687]
[1610069225433,0.13632608,38477.0,38465.0,0.03211662]
[1610069225634,0.13632608,38477.0,38459.0,0.09003]
[1610069226033,0.13632608,38477.0,38460.0,0.03212019]
[1610069226433,0.08564,38481.0,38460.0,0.03212019]
[1610069226434,0.13632608,38461.0,38460.0,0.03212019]
[1610069227633,0.26224608,38461.0,38433.0,0.03212629]
[1610069227834,0.26224608,38461.0,38460.0,0.03212787]
[1610069228033,0.26224608,38461.0,38419.0,0.1591265]
[1610069228034,0.26224608,38461.0,38434.0,0.03213113]
[1610069228235,3.8987,38455.0,38434.0,0.03213113]
[1610069228433,0.13632608,38435.0,38433.0,0.03213098]
[1610069228633,0.13632608,38435.0,38432.0,0.27246608]
[1610069228834,0.13632608,38435.0,38434.0,0.03212935]
[1610069229235,0.13632608,38435.0,38433.0,0.03213086]
[1610069229435,0.13632608,38435.0,38434.0,0.03213229]
[1610069229634,0.13632608,38435.0,38434.0,0.03213624]
[1610069230037,0.13632608,38435.0,38433.0,0.03213726]
[1610069230236,0.13632608,38435.0,38434.0,0.03213699]
[1610069230837,0.13632608,38435.0,38433.0,0.03214104]
[1610069231038,0.13632608,38435.0,38434.0,0.03214094]
[1610069231637,0.13632608,38435.0,38433.0,0.03214169]
[1610069231838,0.13632608,38435.0,38433.0,0.03214233]
[1610069232038,0.13632608,38435.0,38432.0,0.13614]
[1610069232237,0.13632608,38435.0,38398.0,0.06368113]
[1610069232439,0.13632608,38430.0,38417.0,0.13632608]
[1610069232641,0.10564,38453.0,38423.0,0.03214268]
[1610069232840,0.10564,38453.0,38423.0,0.00030115]
[1610069233043,0.10564,38453.0,38418.0,0.03214379]
[1610069233239,0.10564,38453.0,38424.0,0.00030115]
[1610069233439,0.10564,38453.0,38419.0,0.00030115]
[1610069233640,0.10564,38453.0,38425.0,0.00030116]
[1610069233839,0.10564,38453.0,38425.0,0.12184116]
[1610069234039,0.10564,38453.0,38425.0,0.12154]
[1610069234239,0.10564,38453.0,38426.0,0.0321434]
[1610069234439,0.13632608,38428.0,38426.0,0.16846948]
[1610069234841,0.13632608,38428.0,38427.0,0.03212999]
[1610069235040,0.10564,38453.0,38427.0,0.03212999]
[1610069236242,3.8987,38455.0,38427.0,0.03212999]
[1610069236442,0.13632608,38431.0,38426.0,0.03212916]
[1610069236643,0.13632608,38431.0,38428.0,0.03212916]
[1610069236843,0.13632608,38431.0,38427.0,0.03212829]
[1610069237241,0.13632608,38431.0,38426.0,0.03212908]
[1610069237445,0.13632608,38431.0,38428.0,0.03212891]
[1610069237643,0.13632608,38431.0,38427.0,0.03212871]
[1610069238046,0.13632608,38431.0,38425.0,0.12154]
[1610069238047,0.13632608,38431.0,38426.0,0.03212933]
[1610069238245,0.13632608,38431.0,38428.0,0.03212954]
[1610069238445,0.13632608,38431.0,38427.0,0.03212984]
[1610069238845,0.13632608,38431.0,38426.0,0.03213056]
[1610069239046,0.13632608,38431.0,38428.0,0.03213008]
[1610069239246,0.13632608,38431.0,38428.0,0.03184264]
[1610069239445,0.13632608,38431.0,38427.0,0.03213014]
[1610069239645,0.13632608,38431.0,38429.0,0.03213035]
[1610069239845,0.13632608,38431.0,38428.0,0.03213033]
[1610069240045,0.13632608,38431.0,38430.0,0.03213033]
[1610069240449,0.13632608,38431.0,38426.0,0.03213306]
[1610069240645,0.13632608,38431.0,38430.0,0.03213321]
[1610069240845,0.13632608,38431.0,38427.0,0.03213181]
[1610069241246,0.13632608,38431.0,38430.0,0.03213256]
[1610069241446,0.13632608,38431.0,38428.0,0.03213402]
[1610069241647,0.13632608,38431.0,38430.0,0.03184784]
[1610069241846,0.13632608,38431.0,38430.0,0.00028736]
[1610069242049,0.13632608,38431.0,38429.0,0.03184844]
[1610069242250,0.13632608,38431.0,38430.0,0.00028737]
[1610069242451,0.13632608,38431.0,38430.0,0.03213775]
[1610069242849,0.13632608,38431.0,38409.0,0.03214746]
[1610069243050,0.13632608,38431.0,38430.0,0.03214324]
[1610069243249,0.13632608,38431.0,38410.0,0.03214426]
[1610069243649,0.13632608,38431.0,38430.0,0.03214534]
[1610069243850,0.13632608,38431.0,38411.0,0.03214476]
[1610069244050,3.7291,38424.0,38408.0,0.10368]
[1610069244450,3.7291,38424.0,38366.0,0.15010927]
[1610069244651,0.13632608,38394.0,38390.0,0.13632608]
[1610069245252,0.13632608,38394.0,38391.0,0.03215001]
[1610069245453,0.13632608,38394.0,38391.0,0.15513001]
[1610069246053,0.13632608,38394.0,38392.0,0.0321512]
[1610069249158,0.13632608,38394.0,38393.0,0.03215521]
[1610069249758,0.13632608,38394.0,38392.0,0.03215557]
[1610069249959,0.13632608,38394.0,38393.0,0.03215583]
[1610069250158,0.73622608,38394.0,38393.0,0.03215583]
[1610069250558,0.73622608,38394.0,38392.0,0.03215594]
[1610069250759,0.73622608,38394.0,38393.0,0.03215682]
[1610069250960,0.73622608,38394.0,38366.0,0.13632608]
[1610069251161,0.13632608,38394.0,38381.0,0.10304]
[1610069251359,3.2906,38382.0,38381.0,0.10304]
[1610069251759,0.13632608,38394.0,38381.0,0.13520708]
[1610069251960,0.12741,38383.0,38381.0,0.13520708]
[1610069252159,0.12741,38383.0,38382.0,0.03216909]
[1610069252361,0.12741,38383.0,38362.0,0.12178]
[1610069252560,0.13632608,38367.0,38362.0,0.12178]
[1610069252963,0.13632608,38367.0,38363.0,0.03217346]
[1610069254562,0.13632608,38371.0,38366.0,0.13632608]
[1610069254766,0.11316,38391.0,38366.0,0.13632608]
[1610069254964,0.11316,38391.0,38367.0,0.03217]
[1610069255163,0.13322,38400.0,38367.0,0.03217]
[1610069255764,3.8144,38438.0,38367.0,0.03217]
[1610069255963,0.0156967,38442.0,38367.0,0.03217]
[1610069256167,0.015706,38449.0,38367.0,0.03217]
[1610069256365,0.015706,38449.0,38380.0,3.2697]
[1610069256566,0.48273563,38454.0,38419.0,0.13632608]
[1610069256767,0.48273563,38454.0,38419.0,0.25931608]
[1610069257168,0.0157159,38466.0,38420.0,0.03214887]
[1610069257570,0.4826444,38470.0,38420.0,0.03214887]
[1610069257969,0.01571319,38472.0,38420.0,0.03214887]
[1610069258170,0.4871,38469.0,38420.0,0.03214887]
[1610069258569,0.58916,38469.0,38434.0,0.13632608]
[1610069258970,0.58916,38469.0,38435.0,0.0321415]
[1610069259571,0.58916,38469.0,38428.0,0.03214134]
[1610069259769,0.58916,38469.0,38427.0,0.09628]
[1610069259770,0.58916,38469.0,38436.0,0.0321413]
[1610069259972,0.10206,38469.0,38436.0,0.0321413]
[1610069260171,3.3692,38466.0,38429.0,0.03214198]
[1610069260371,3.3692,38466.0,38437.0,0.0321419]
[1610069260571,0.13632608,38438.0,38430.0,0.03214217]
[1610069260970,0.13632608,38438.0,38427.0,0.09628]
[1610069261171,0.13632608,38438.0,38431.0,0.03214302]
[1610069261372,0.13632608,38438.0,38427.0,0.09628]
[1610069261373,0.13632608,38438.0,38428.0,0.0321432]
[1610069261769,0.13632608,38438.0,38432.0,0.03214411]
[1610069261971,0.13632608,38438.0,38429.0,0.03214398]
[1610069262171,0.13632608,38438.0,38433.0,0.03214453]
[1610069262370,0.22479608,38438.0,38433.0,0.03214453]
[1610069262570,0.22479608,38438.0,38419.0,0.12299]
[1610069262571,0.13632608,38434.0,38430.0,0.03214612]
[1610069262770,0.13632608,38434.0,38406.0,0.13632608]
[1610069262971,0.13632608,38434.0,38431.0,0.03215001]
[1610069263172,0.13632608,38434.0,38388.0,0.15011998]
[1610069263371,0.13632608,38434.0,38401.0,0.08774]
[1610069263772,3.8771,38428.0,38402.0,0.03215332]
[1610069263974,4.00248,38428.0,38402.0,0.03215332]
[1610069264573,0.13632608,38403.0,38402.0,0.03215332]
[1610069265173,0.13632608,38403.0,38382.0,0.03215778]
[1610069265373,0.13632608,38403.0,38382.0,0.03215828]
[1610069265573,0.13632608,38403.0,38381.0,0.13632608]
[1610069265975,0.13632608,38403.0,38382.0,0.03215852]
[1610069266575,0.13632608,38383.0,38382.0,0.03215852]
[1610069266774,0.13632608,38383.0,38376.0,0.13632608]
[1610069266775,0.13632608,38383.0,38381.0,0.03215895]
[1610069266974,0.13632608,38383.0,38382.0,0.032159]
[1610069267579,0.13632608,38383.0,38381.0,0.03215895]
[1610069267777,0.13632608,38383.0,38382.0,0.0321593]
[1610069268177,0.13632608,38383.0,38382.0,0.1636893]
[1610069268377,0.13632608,38383.0,38382.0,0.13153]
[1610069268576,0.13632608,38383.0,38382.0,0.16368919]
[1610069277887,3.6195,38406.0,38382.0,0.16368919]
[1610069278289,0.12538,38428.0,38382.0,0.16368919]
[1610069278487,0.12538,38428.0,38383.0,0.03216312]
[1610069278688,0.13632608,38407.0,38401.0,0.13632608]
[1610069278888,0.08847,38438.0,38401.0,0.13632608]
[1610069279088,0.01560167,38443.0,38401.0,0.26257608]
[1610069279288,0.015622,38448.0,38402.0,0.03215845]
[1610069279790,0.09899,38449.0,38402.0,0.03215845]
[1610069279988,0.01566402,38454.0,38402.0,0.03215845]
[1610069280188,0.01567474,38458.0,38402.0,0.03215845]